lending/lending_fUSD_20240807
["ID","MTS","AMOUNT","RATE_DAILY","PERIOD"]
[334406652,1723043448715,-1046.13066071,0.00011,2]
[334406653,1723043448728,-2073.29355406,0.00011,2]
[334406654,1723043448739,-400.61843616,0.00011,2]
[334406655,1723043448752,-1073.0,0.00011,2]
[334406656,1723043599067,163.6,9.389e-05,2]
[334406660,1723044152956,187.43,8.219e-05,2]
[334406703,1723044632048,-422.408079,9.823e-05,2]
[334406704,1723044632059,-169.6,9.873e-05,2]
[334406705,1723044632069,-194.46,9.89e-05,2]
[334406706,1723044632078,-250.0,9.943e-05,2]
[334406707,1723044632096,-703.531921,9.948e-05,2]
[334406708,1723044632107,-1935.80047111,9.948e-05,2]
[334406711,1723044636769,438.4673062,0.0001,30]
[334406715,1723044638220,-310.0,9.873e-05,2]
[334406716,1723044638230,-528.07140407,9.948e-05,2]
[334406717,1723044638239,-300.0,9.948e-05,2]
[334406718,1723044638250,-3319.49695717,9.949e-05,2]
[334406719,1723044638649,-2481.577501,9.949e-05,2]
[334406724,1723044640141,-4567.82723468,9.949e-05,2]
[334406725,1723044640153,-3538.49946926,9.949e-05,2]
[334406726,1723044640604,-1404.61,9.949e-05,2]
[334406727,1723044640616,-344.62556429,9.949e-05,2]
[334406728,1723044640628,-1609.608,9.949e-05,2]
[334406742,1723044642977,-6633.7552736,9.949e-05,2]
[334406744,1723044642987,-155.0,9.962e-05,2]
[334406746,1723044642997,-640.0,9.999e-05,2]
[334406748,1723044643006,-6618.18259885,0.0001,2]
[334406749,1723044643015,-1481.93,0.00010477,2]
[334406750,1723044643025,-187.43,0.00010477,2]
[334406751,1723044643034,-300.0,0.000106,3]
[334406752,1723044643043,-600.0,0.000107,3]
[334406753,1723044643053,-499.99,0.000107,2]
[334406754,1723044643062,-159.88,0.00010724,2]
[334406755,1723044643071,-159.88,0.00010729,2]
[334406756,1723044643080,-159.88,0.00010734,2]
[334406757,1723044643092,-159.88,0.00010739,2]
[334406758,1723044643102,-159.88,0.00010743,2]
[334406759,1723044643111,-159.88,0.00010748,2]
[334406760,1723044643120,-159.88,0.00010753,2]
[334406761,1723044643130,-159.88,0.00010758,2]
[334406762,1723044643139,-159.88,0.00010763,2]
[334406763,1723044643148,-159.88,0.00010768,2]
[334406764,1723044643157,-159.88,0.00010773,2]
[334406765,1723044643167,-155.315,0.00010778,2]
[334406766,1723044643179,-159.88,0.00010778,2]
[334406767,1723044643188,-900.0,0.000108,3]
[334406768,1723044643197,-151.07,0.0001088,2]
[334406769,1723044643207,-150.0,0.00010899,2]
[334406770,1723044643216,-15423.356,0.000109,2]
[334406771,1723044643225,-15164.0379,0.000109,2]
[334406772,1723044643234,-4989.8213,0.000109,2]
[334406773,1723044643243,-154.36426806,0.000109,2]
[334406774,1723044643255,-1621.91692971,0.000109,2]
[334406775,1723044643264,-1200.0,0.000109,3]
[334406776,1723044643273,-167.89750998,0.000109,2]
[334406777,1723044643282,-242.76850774,0.000109,2]
[334406778,1723044643291,-418.83651901,0.000109,2]
[334406779,1723044643300,-420.0,0.00010942,2]
[334406780,1723044643309,-250.0,0.00010959,2]
[334406781,1723044643318,-154.36426805,0.00010962,2]
[334406782,1723044643328,-1008.19505592,0.00010999,2]
[334406783,1723044643337,-14925.50158478,0.00011,2]
[334406784,1723044643348,-225541.18845176,0.00011,2]
[334406785,1723044643360,-666.41,0.00011,2]
[334406786,1723044643371,-1507.29,0.00011,2]
[334406787,1723044643510,-1909.90824921,0.00011,2]
[334406788,1723044643526,-711.66079676,0.00011,2]
[334406797,1723044647726,-9250.94572472,0.00011,2]
[334406798,1723044647738,-4145.50708391,0.00011,2]
[334406799,1723044647749,-12332.69032004,0.00011,2]
[334406800,1723044647762,-2677.19619654,0.00011,2]
[334406801,1723044647773,-1250.0945842,0.00011,2]
[334406802,1723044647784,-2218.84058109,0.00011,2]
[334406803,1723044647795,-11138.52330949,0.00011,2]
[334406804,1723044647806,-28116.86000001,0.00011,2]
[334406805,1723044647817,-590.59,0.00011,2]
[334406807,1723044668086,1079.6,8.219e-05,2]
[334406808,1723044668118,440.20441078,8.219e-05,2]
[334406809,1723044668390,168.68,9.511e-05,2]
[334406814,1723045172387,160.24,8.844e-05,2]
[334406815,1723045281154,507.31,9.678e-05,2]
[334406885,1723045654836,152.22,8.467e-05,2]
[334406892,1723045702558,-1126.63117818,0.0001,2]
[334406914,1723045833380,-685.05424735,0.0001,2]
[334406915,1723045833396,-2781.5102125,0.0001,2]
[334406916,1723045833406,-412.97957434,0.0001,2]
[334406917,1723045833416,-11517.91,0.00010342,2]
[334406918,1723045833426,-175.53,0.00010351,2]
[334406919,1723045833436,-250.0,0.00010369,2]
[334406920,1723045833447,-163.37587771,0.0001072,2]
[334406921,1723045833457,-155.0,0.0001072,2]
[334406922,1723045833467,-152.22,0.00010731,2]
[334406923,1723045833477,-512.0,0.00010731,2]
[334406925,1723045833501,-1000.0,0.000109,2]
[334406927,1723045833511,-165.01000427,0.000109,2]
[334406929,1723045833521,-1459.72523673,0.000109,2]
[334406931,1723045833532,-156.90435469,0.000109,2]
[334406932,1723045833542,-167.89750997,0.000109,2]
[334406933,1723045833551,-1364.4498092,0.000109,2]
[334406934,1723045833561,-418.83651901,0.000109,2]
[334406935,1723045833571,-150.0,0.00010999,2]
[334406936,1723045833582,-6169.1,0.00010999,2]
[334406937,1723045833593,-199.35838294,0.00010999,2]
[334406938,1723045833605,-1415.0,0.00011,2]
[334406939,1723045833615,-353837.86322272,0.00011,2]
[334406952,1723045838265,-9416.45537779,0.00011,2]
[334406953,1723045838278,-561.73789332,0.00011,2]
[334406954,1723045838380,-5000.0,0.00011,2]
[334406972,1723045840568,-1268.0,0.00011,2]
[334406973,1723045840578,-1454.39059558,0.00011,2]
[334406986,1723045843058,-363.645,0.00011,2]
[334406988,1723045843069,-745.08646596,0.00011,2]
[334407024,1723045846206,-591.96647287,0.000109,2]
[334407025,1723045846216,-483781.7796752,0.00011,2]
[334407026,1723045846263,-51469.6526097,0.00011,2]
[334407027,1723045846355,-27966.76999999,0.00011,2]
[334407028,1723045997667,500.0,0.00024999,120]
[334407029,1723046162809,303.87,8.321e-05,2]
[334407040,1723046230597,871.98206993,8.321e-05,2]
[334407041,1723046232415,425.76564301,8.321e-05,2]
[334407042,1723046233075,155.0,8.321e-05,2]
[334407043,1723046233112,159.01284171,8.321e-05,2]
[334407044,1723046234092,344.46246422,8.321e-05,2]
[334407045,1723046234116,67.34223303,8.321e-05,2]
[334407046,1723046235099,1284.65790957,8.321e-05,2]
[334407047,1723046235392,291.51080099,8.321e-05,2]
[334407048,1723046235554,155.0,8.321e-05,2]
[334407049,1723046236297,897.51477935,8.321e-05,2]
[334407050,1723046237170,4844.25705738,8.321e-05,2]
[334407051,1723046237820,760.1334565,8.321e-05,2]
[334407052,1723046237938,2071.4593524,8.321e-05,2]
[334407053,1723046237960,10000.0,8.321e-05,2]
[334407054,1723046237983,2283.53625285,8.321e-05,2]
[334407055,1723046238662,155.0,8.321e-05,2]
[334407056,1723046239380,790.81875879,8.321e-05,2]
[334407057,1723046240279,485.47880185,8.321e-05,2]
[334407058,1723046240903,363.90119021,8.321e-05,2]
[334407059,1723046241096,1268.48747637,8.321e-05,2]
[334407060,1723046241539,692.9783162,8.321e-05,2]
[334407061,1723046248254,155.0,8.321e-05,2]
[334407062,1723046248710,155.0,8.321e-05,2]
[334407063,1723046248832,155.0,8.321e-05,2]
[334407064,1723046249638,227.67484022,8.321e-05,2]
[334407065,1723046250015,1223.35682624,8.321e-05,2]
[334407066,1723046251857,237.65754559,8.321e-05,2]
[334407067,1723046253148,1309.6907768,8.321e-05,2]
[334407068,1723046256894,496.41921488,8.321e-05,2]
[334407069,1723046256915,294.39954391,8.321e-05,2]
[334407070,1723046263724,155.0,8.321e-05,2]
[334407071,1723046268661,155.0,8.321e-05,2]
[334407072,1723046271097,1268.48747637,8.321e-05,2]
[334407073,1723046278838,155.0,8.321e-05,2]
[334407074,1723046315108,1284.65790957,8.321e-05,2]
[334407075,1723046320163,155.0,8.321e-05,2]
[334407076,1723046325092,411.73782647,8.321e-05,2]
[334407077,1723046325412,425.76564301,8.321e-05,2]
[334407078,1723046325449,5694.95160067,8.321e-05,2]
[334407079,1723046325471,8658.0109358,8.321e-05,2]
[334407080,1723046326592,871.98206993,8.321e-05,2]
[334407081,1723046327886,291.51080099,8.321e-05,2]
[334407082,1723046328401,178.49619328,8.321e-05,2]
[334407083,1723046328423,185.40499693,8.321e-05,2]
[334407084,1723046336550,692.9783162,8.321e-05,2]
[334407085,1723046340391,790.81875879,8.321e-05,2]
[334407086,1723046341611,159.01284171,8.321e-05,2]
[334407087,1723046342030,1223.35682624,8.321e-05,2]
[334407088,1723046343154,6948.42826013,8.321e-05,2]
[334407089,1723046343176,10000.0,8.321e-05,2]
[334407090,1723046343197,10000.0,8.321e-05,2]
[334407091,1723046343218,10000.0,8.321e-05,2]
[334407092,1723046343239,10000.0,8.321e-05,2]
[334407093,1723046343259,10000.0,8.321e-05,2]
[334407094,1723046343281,10000.0,8.321e-05,2]
[334407095,1723046343310,10000.0,8.321e-05,2]
[334407096,1723046343333,5410.2920244,8.321e-05,2]
[334407097,1723046344302,485.47880185,8.321e-05,2]
[334407098,1723046344795,760.1334565,8.321e-05,2]
[334407099,1723046352581,155.0,8.321e-05,2]
[334407100,1723046368160,1309.6907768,8.321e-05,2]
[334407101,1723046374796,760.1334565,8.321e-05,2]
[334407102,1723046388552,155.0,8.321e-05,2]
[334407103,1723046397102,964.27148395,8.321e-05,2]
[334407104,1723046397124,304.21599242,8.321e-05,2]
[334407105,1723046400932,155.0,8.321e-05,2]
[334407106,1723046402960,150.0,8.321e-05,2]
[334407107,1723046403180,150.0,8.321e-05,2]
[334407108,1723046403463,150.0,8.321e-05,2]
[334407109,1723046403687,150.0,8.321e-05,2]
[334407110,1723046403954,150.0,8.321e-05,2]
[334407111,1723046404246,150.0,8.321e-05,2]
[334407112,1723046404729,150.0,8.321e-05,2]
[334407113,1723046404973,150.0,8.321e-05,2]
[334407114,1723046405146,150.0,8.321e-05,2]
[334407115,1723046405344,150.0,8.321e-05,2]
[334407116,1723046405574,150.0,8.321e-05,2]
[334407117,1723046405759,150.0,8.321e-05,2]
[334407118,1723046405998,150.0,8.321e-05,2]
[334407119,1723046406202,150.0,8.321e-05,2]
[334407120,1723046406399,150.0,8.321e-05,2]
[334407121,1723046406595,150.0,8.321e-05,2]
[334407122,1723046406823,150.0,8.321e-05,2]
[334407123,1723046407030,150.0,8.321e-05,2]
[334407124,1723046407208,150.0,8.321e-05,2]
[334407125,1723046407499,150.0,8.321e-05,2]
[334407126,1723046407695,150.0,8.321e-05,2]
[334407127,1723046407890,150.0,8.321e-05,2]
[334407128,1723046408093,150.0,8.321e-05,2]
[334407129,1723046408268,150.0,8.321e-05,2]
[334407130,1723046408459,150.0,8.321e-05,2]
[334407131,1723046408633,150.0,8.321e-05,2]
[334407132,1723046408817,150.0,8.321e-05,2]
[334407133,1723046409216,150.0,8.321e-05,2]
[334407134,1723046409409,150.0,8.321e-05,2]
[334407135,1723046409583,150.0,8.321e-05,2]
[334407136,1723046409804,150.0,8.321e-05,2]
[334407137,1723046409990,150.0,8.321e-05,2]
[334407138,1723046410195,201.75877937,8.321e-05,2]
[334407139,1723046412109,1268.48747637,8.321e-05,2]
[334407140,1723046412430,363.90119021,8.321e-05,2]
[334407141,1723046414397,790.81875879,8.321e-05,2]
[334407142,1723046415841,155.0,8.321e-05,2]
[334407143,1723046421724,172.04975601,5e-05,2]
[334407144,1723046422284,1284.65790957,8.321e-05,2]
[334407145,1723046433593,504.11013726,8.321e-05,2]
[334407146,1723046433615,367.87193267,8.321e-05,2]
[334407147,1723046436023,1223.35682624,8.321e-05,2]
[334407148,1723046436621,159.01284171,8.321e-05,2]
[334407149,1723046437268,155.0,8.321e-05,2]
[334407150,1723046439281,485.47880185,8.321e-05,2]
[334407151,1723046440158,692.80548005,8.321e-05,2]
[334407152,1723046444641,227.67484022,8.321e-05,2]
[334407153,1723046444890,291.44073617,8.321e-05,2]
[334407154,1723046445587,425.76564301,8.321e-05,2]
[334407155,1723046452642,227.67484022,8.321e-05,2]
[334407156,1723046455082,411.63443338,8.321e-05,2]
[334407158,1723046459176,1309.6907768,8.321e-05,2]
[334407159,1723046459577,155.0,8.321e-05,2]
[334407160,1723046466174,155.16912908,8.321e-05,2]
[334407161,1723046467909,155.0,8.321e-05,2]
[334407162,1723046479610,250.0,8.321e-05,2]
[334407163,1723046482906,155.0,8.321e-05,2]
[334407164,1723046487563,155.0,8.321e-05,2]
[334407165,1723046489692,2997.4237186,8.321e-05,2]
[334407166,1723046489714,10000.0,8.321e-05,2]
[334407167,1723046489735,6216.23863018,8.321e-05,2]
[334407168,1723046494426,363.5360442,8.321e-05,2]
[334407169,1723046500682,790.81875879,8.321e-05,2]
[334407170,1723046502953,760.1334565,8.321e-05,2]
[334407171,1723046508005,227.69843321,8.321e-05,2]
[334407172,1723046511601,871.98206993,8.321e-05,2]
[334407173,1723046515158,769.59260719,8.321e-05,2]
[334407174,1723046515180,10000.0,8.321e-05,2]
[334407175,1723046515200,10000.0,8.321e-05,2]
[334407176,1723046515220,10000.0,8.321e-05,2]
[334407177,1723046515240,10000.0,8.321e-05,2]
[334407178,1723046515260,10000.0,8.321e-05,2]
[334407179,1723046515280,10000.0,8.321e-05,2]
[334407180,1723046515301,10000.0,8.321e-05,2]
[334407181,1723046515322,10000.0,8.321e-05,2]
[334407182,1723046515347,6377.70886073,8.321e-05,2]
[334407183,1723046519665,1284.65790957,8.321e-05,2]
[334407184,1723046520118,1267.96944542,8.321e-05,2]
[334407185,1723046526134,158.6746375,8.321e-05,2]
[334407186,1723046526420,371.54069157,8.321e-05,2]
[334407187,1723046532795,539.44845521,8.321e-05,2]
[334407188,1723046532817,220.68500129,8.321e-05,2]
[334407189,1723046541079,692.41169613,8.321e-05,2]
[334407190,1723046543127,262.18128558,8.321e-05,2]
[334407191,1723046543322,485.47880185,8.321e-05,2]
[334407192,1723046545031,1223.35682624,8.321e-05,2]
[334407193,1723046555178,1309.6907768,8.321e-05,2]
[334407194,1723046557587,155.53277144,8.321e-05,2]
[334407195,1723046560628,301.72431998,8.321e-05,2]
[334407196,1723046568183,1633.72521741,8.321e-05,2]
[334407197,1723046575655,227.67484022,8.321e-05,2]
[334407198,1723046580433,363.80792903,8.321e-05,2]
[334407199,1723046582429,634.84830364,8.321e-05,2]
[334407200,1723046582696,1193.15530958,8.321e-05,2]
[334407201,1723046583336,1295.72692081,8.321e-05,2]
[334407202,1723046583357,2437.94119513,8.321e-05,2]
[334407203,1723046586575,155.0,8.321e-05,2]
[334407204,1723046588454,7407.05880487,8.321e-05,2]
[334407205,1723046588477,6947.93680038,8.321e-05,2]
[334407206,1723046597628,871.98206993,8.321e-05,2]
[334407207,1723046598547,230.64450184,8.321e-05,2]
[334407208,1723046599143,500.0,0.00024999,120]
[334407209,1723046603454,14354.99560525,8.321e-05,2]
[334407210,1723046605114,506.24,8.219e-05,2]
[334407211,1723046605796,227.67484022,8.321e-05,2]
[334407212,1723046616180,155.0,8.321e-05,2]
[334407213,1723046616418,425.65743734,8.321e-05,2]
[334407214,1723046617111,1284.65790957,8.321e-05,2]
[334407215,1723046620573,411.69952763,8.321e-05,2]
[334407217,1723046638151,1268.38387018,8.321e-05,2]
[334407218,1723046638863,155.0,8.321e-05,2]
[334407219,1723046646160,36032.95217931,8.321e-05,2]
[334407220,1723046647071,692.80235,8.321e-05,2]
[334407221,1723046648024,1223.35682624,8.321e-05,2]
[334407224,1723046671367,1309.6907768,8.321e-05,2]
[334407225,1723046675568,222.79063695,8.321e-05,2]
[334407226,1723046676179,854.43485407,8.321e-05,2]
[334407227,1723046681966,500.0,8.321e-05,2]
[334407228,1723046682479,500.0,8.321e-05,2]
[334407229,1723046682996,500.0,8.321e-05,2]
[334407230,1723046683726,500.0,8.321e-05,2]
[334407231,1723046684415,500.0,8.321e-05,2]
[334407232,1723046684865,500.0,8.321e-05,2]
[334407233,1723046685551,500.0,8.321e-05,2]
[334407234,1723046686291,500.0,8.321e-05,2]
[334407235,1723046686719,652.0,8.321e-05,2]
[334407237,1723046703633,893.27009317,8.321e-05,2]
[334407238,1723046719681,227.67484022,8.321e-05,2]
[334407239,1723046721148,1284.65790957,8.321e-05,2]
[334407240,1723046751125,1284.65790957,8.321e-05,2]
[334407241,1723046763038,686.2950324,8.321e-05,2]
[334407242,1723046787205,1309.03641938,8.321e-05,2]
[334407243,1723046819668,227.67484022,8.321e-05,2]
[334407244,1723046857246,1284.65790957,8.321e-05,2]
[334407245,1723046894948,5737.574608,9.525e-05,2]
[334407246,1723046910750,150.0,0.00024752,120]
[334407247,1723046928432,-179.67,9.574e-05,2]
[334407257,1723046956158,-1852.42,9.583e-05,2]
[334407258,1723046956183,-200.0,9.584e-05,2]
[334407259,1723046956208,-1615.14,9.613e-05,2]
[334407260,1723046956233,-961.92,9.622e-05,2]
[334407261,1723046956259,-959.1,9.648e-05,2]
[334407262,1723046956286,-1246.7647557,9.661e-05,2]
[334407263,1723046956316,-6835.3447557,9.661e-05,2]
[334407264,1723046956346,-6835.3447557,9.661e-05,2]
[334407265,1723046956384,-6835.3447557,9.661e-05,2]
[334407266,1723046956425,-2147.2009772,9.661e-05,2]
[334407268,1723046956450,-3022.49178586,9.664e-05,2]
[334407275,1723047032157,-386.18690679,9.664e-05,2]
[334407276,1723047032167,-241.66607917,9.664e-05,2]
[334407277,1723047032223,-1534.28213497,9.664e-05,2]
[334407278,1723047032232,-694.71,9.723e-05,2]
[334407279,1723047032242,-250.0,9.735e-05,2]
[334407280,1723047032252,-300.0,9.885e-05,2]
[334407281,1723047032261,-7390.11675322,9.886e-05,2]
[334407282,1723047032274,-1440.43885463,9.886e-05,2]
[334407283,1723047032290,-706.11031433,9.886e-05,2]
[334407284,1723047032408,-299.25805914,9.886e-05,2]
[334407305,1723047038270,-891.65564307,9.886e-05,2]
[334407306,1723047038281,-4746.54717561,9.886e-05,2]
[334407307,1723047038291,-2249.6,9.899e-05,2]
[334407308,1723047038301,-150.0,9.941e-05,2]
[334407309,1723047038311,-4903.85282439,9.942e-05,2]
[334407310,1723047038341,-0.10978411,9.942e-05,2]
[334407311,1723047038391,-810.0012,9.942e-05,2]
[334407312,1723047038569,-1047.9061915,9.942e-05,2]
[334407313,1723047038578,-185.5512,9.986e-05,2]
[334407314,1723047038588,-184.27,0.00010013,2]
[334407315,1723047038599,-348.42,0.00010025,2]
[334407316,1723047038608,-21.16611906,0.00010081,2]
[334407317,1723047038620,-149.22388094,0.00010081,2]
[334407318,1723047038629,-1000.0,0.00010374,2]
[334407319,1723047038638,-506.24,0.00010466,2]
[334407320,1723047038647,-500.0,0.000107,2]
[334407321,1723047038657,-1000.0,0.000107,2]
[334407322,1723047038666,-676.2827,0.000107,2]
[334407323,1723047038675,-2416.0501,0.000107,2]
[334407324,1723047038685,-152.0,0.00010785,2]
[334407325,1723047038694,-2333.42652112,0.000108,2]
[334407333,1723047040651,-242666.57347888,0.000108,2]
[334407334,1723047040661,-420.0,0.00010873,2]
[334407335,1723047040673,-1000.0,0.000109,2]
[334407336,1723047040684,-541.6496,0.000109,2]
[334407337,1723047040694,-100000.0,0.000109,2]
[334407338,1723047040704,-102529.629,0.000109,2]
[334407339,1723047040714,-2680.2536,0.000109,2]
[334407340,1723047040724,-1069.1925,0.000109,2]
[334407341,1723047040734,-12383.0055,0.000109,2]
[334407342,1723047040744,-156.90435468,0.000109,2]
[334407343,1723047040753,-169.46887535,0.000109,2]
[334407344,1723047040763,-534.50786604,0.000109,2]
[334407345,1723047040772,-150.0,0.00010935,2]
[334407346,1723047040782,-150.0,0.00010959,2]
[334407347,1723047040792,-250.0,0.00010959,2]
[334407348,1723047040803,-1000.0,0.00010959,2]
[334407349,1723047040815,-1090.0,0.00011,2]
[334407350,1723047040824,-311277.8272236,0.00011,2]
[334407351,1723047040834,-359.5781909,0.00011,2]
[334407352,1723047040843,-1007.55884233,0.00011,2]
[334407353,1723047040853,-1411386.42137922,0.00011,2]
[334407354,1723047040862,-46510.05144361,0.00011,2]
[334407355,1723047040871,-151.0,0.00011,2]
[334407356,1723047040881,-151.0,0.00011,2]
[334407357,1723047040892,-151.0,0.00011,2]
[334407358,1723047040901,-151.0,0.00011,2]
[334407359,1723047040910,-151.0,0.00011,2]
[334407360,1723047040920,-213.339908,0.00011,2]
[334407361,1723047040929,-151.0,0.00011,2]
[334407362,1723047040938,-151.0,0.00011,2]
[334407363,1723047040948,-151.0,0.00011,2]
[334407364,1723047040957,-447.532233,0.00011,2]
[334407365,1723047040967,-151.0,0.00011,2]
[334407366,1723047040976,-447.532233,0.00011,2]
[334407367,1723047040986,-166.838904,0.00011,2]
[334407368,1723047041001,-166.838904,0.00011,2]
[334407369,1723047041011,-151.0,0.00011,2]
[334407370,1723047041021,-151.0,0.00011,2]
[334407371,1723047041030,-151.0,0.00011,2]
[334407372,1723047041042,-151.0,0.00011,2]
[334407373,1723047041051,-151.451449,0.00011,2]
[334407374,1723047041062,-151.0,0.00011,2]
[334407375,1723047041073,-151.0,0.00011,2]
[334407376,1723047041084,-151.0,0.00011,2]
[334407377,1723047041094,-213.583613,0.00011,2]
[334407378,1723047041104,-151.0,0.00011,2]
[334407379,1723047041114,-213.583613,0.00011,2]
[334407380,1723047041123,-463.643215,0.00011,2]
[334407381,1723047041132,-463.643215,0.00011,2]
[334407382,1723047041142,-151.0,0.00011,2]
[334407383,1723047041151,-151.0,0.00011,2]
[334407384,1723047041161,-151.0,0.00011,2]
[334407385,1723047041170,-151.0,0.00011,2]
[334407386,1723047041179,-151.0,0.00011,2]
[334407387,1723047041189,-151.0,0.00011,2]
[334407388,1723047041198,-151.0,0.00011,2]
[334407389,1723047041207,-151.0,0.00011,2]
[334407390,1723047041217,-1243.14923,0.00011,2]
[334407391,1723047041226,-151.0,0.00011,2]
[334407392,1723047041235,-151.0,0.00011,2]
[334407393,1723047041244,-151.0,0.00011,2]
[334407394,1723047041254,-151.0,0.00011,2]
[334407395,1723047041263,-151.0,0.00011,2]
[334407396,1723047041272,-151.0,0.00011,2]
[334407397,1723047041281,-151.0,0.00011,2]
[334407398,1723047041290,-151.0,0.00011,2]
[334407399,1723047041299,-151.0,0.00011,2]
[334407400,1723047041313,-151.0,0.00011,2]
[334407401,1723047041322,-151.0,0.00011,2]
[334407402,1723047041332,-151.0,0.00011,2]
[334407403,1723047041341,-151.0,0.00011,2]
[334407404,1723047041351,-151.0,0.00011,2]
[334407405,1723047041360,-151.0,0.00011,2]
[334407406,1723047041369,-151.0,0.00011,2]
[334407407,1723047041378,-151.0,0.00011,2]
[334407408,1723047041387,-151.0,0.00011,2]
[334407409,1723047041396,-151.0,0.00011,2]
[334407410,1723047041405,-151.0,0.00011,2]
[334407411,1723047041415,-151.0,0.00011,2]
[334407412,1723047041424,-151.0,0.00011,2]
[334407413,1723047041433,-151.0,0.00011,2]
[334407414,1723047041443,-151.0,0.00011,2]
[334407415,1723047041453,-172.668099,0.00011,2]
[334407416,1723047041462,-151.0,0.00011,2]
[334407417,1723047041472,-203.45181,0.00011,2]
[334407418,1723047041481,-151.0,0.00011,2]
[334407419,1723047041490,-245.561077,0.00011,2]
[334407420,1723047041500,-151.0,0.00011,2]
[334407421,1723047041509,-151.0,0.00011,2]
[334407422,1723047041518,-151.0,0.00011,2]
[334407423,1723047041528,-151.0,0.00011,2]
[334407424,1723047041538,-151.0,0.00011,2]
[334407425,1723047041547,-7178.8923129,0.00011006,2]
[334407426,1723047041559,-652.9506624,0.00011006,2]
[334407427,1723047041567,-962.114681,0.00011105,2]
[334407428,1723047041577,-578.55400603,0.00011105,7]
[334407429,1723047041586,-155.0,0.00011105,2]
[334407430,1723047041595,-155.0,0.00011105,2]
[334407431,1723047041604,-155.11329335,0.00011105,2]
[334407432,1723047041614,-155.0,0.00011105,2]
[334407433,1723047041623,-15229.73452473,0.00011105,2]
[334407434,1723047041632,-10530.0262807,0.00011105,2]
[334407435,1723047041642,-2262.85941922,0.00011105,2]
[334407436,1723047041651,-155.29448148,0.00011105,2]
[334407437,1723047041660,-155.0,0.00011105,2]
[334407438,1723047041670,-213.5448365,0.00011105,2]
[334407439,1723047041679,-155.0,0.00011105,2]
[334407440,1723047041688,-365.60352756,0.00011105,2]
[334407441,1723047041697,-155.0,0.00011105,2]
[334407442,1723047041706,-155.0,0.00011105,2]
[334407443,1723047041715,-155.0,0.00011105,2]
[334407444,1723047041725,-200.0,0.00011105,2]
[334407445,1723047041734,-196.70831166,0.00011105,2]
[334407446,1723047041743,-155.0,0.00011105,2]
[334407447,1723047041753,-155.0,0.00011105,2]
[334407448,1723047041763,-155.0,0.00011105,2]
[334407449,1723047041772,-5401.5400912,0.00011105,2]
[334407450,1723047041781,-155.0,0.00011105,2]
[334407451,1723047041790,-155.0,0.00011105,2]
[334407452,1723047041799,-155.0,0.00011105,2]
[334407453,1723047041810,-155.0,0.00011105,2]
[334407454,1723047041819,-155.0,0.00011105,2]
[334407455,1723047041828,-155.0,0.00011105,2]
[334407456,1723047041838,-211.00452246,0.00011105,2]
[334407457,1723047041847,-180.23062663,0.00011105,2]
[334407458,1723047041856,-155.0,0.00011105,2]
[334407459,1723047041865,-308.8660107,0.00011105,2]
[334407460,1723047041874,-155.0,0.00011105,2]
[334407461,1723047041884,-155.0,0.00011105,2]
[334407462,1723047041893,-158.19640417,0.00011105,2]
[334407463,1723047041902,-155.0,0.00011105,2]
[334407464,1723047041912,-155.0,0.00011105,2]
[334407465,1723047041921,-225.58411866,0.00011105,2]
[334407466,1723047041930,-155.30623111,0.00011105,2]
[334407467,1723047041940,-155.0,0.00011105,2]
[334407468,1723047041949,-161.33159245,0.00011105,2]
[334407469,1723047041958,-400.0,0.00011105,2]